[Event "34th GER-ch Seniors-50 2022"]
[Site "Magdeburg"]
[Date "2022.08.12"]
[Round "1.7"]
[White "Kuehn, Matthias"]
[Black "Schleicher, Guido"]
[Result "1/2-1/2"]
[ECO "B23"]
[WhiteElo "1918"]
[BlackElo "2234"]
[Annotator "NA RC"]
[PlyCount "55"]
[EventDate "2022.08.12"]
[EventType "swiss"]
[EventCountry "GER"]
[SourceTitle "playchess.com"]
[Source "ChessBase"]
[SourceQuality "1"]
[TimeControl "40/5400+30:1800+30"]

1. e4 {[%emt 0:00:03]} c5 {[%emt 0:00:07]} 2. Nc3 {[%emt 0:00:02]} Nc6 {[%emt 0:00:21]} 3. f4 {[%emt 0:00:18]} g6 {[%emt 0:00:10]} 4. Nf3 {[%emt 0:00:01]} Bg7 {[%emt 0:00:11]} 5. d3 {[%emt 0:00:53]} e6 {[%emt 0:01:44]} 6. g4 {[%emt 0:03:56]} Nge7 {[%emt 0:04:42]} 7. Bg2 {[%emt 0:02:51]} O-O {[%emt 0:04:00]} 8. h4 {[%emt 0:05:34]} f5 {[%emt 0:00:44]} 9. gxf5 {[%emt 0:02:44]} exf5 {[%emt 0:00:18]} 10. h5 {[%emt 0:04:41]} d5 {[%emt 0:11:32]} 11. Ng5 {[%emt 0:12:16]} h6 {[%emt 0:10:21]} 12. hxg6 {[%emt 0:08:46]} Nxg6 {[%emt 0:09:00]} 13. Qh5 {[%emt 0:12:40]} fxe4 {[%emt 0:07:58]} 14. Nxd5 {[%emt 0:18:26] [#]} Qxd5 {[%emt 0:14:18]} ({Better is} 14... exd3 $1 $15 15. Qxg6 Bf5) 15. Bxe4 {[%emt 0:02:37]} ({But not} 15. Qxg6 $2 Bf5 16. Bxe4 (16. dxe4 $2 Rae8 $19) 16... Qxe4+ 17. Nxe4 Bxg6 $19) 15... Qd6 {[%emt 0:02:33]} 16. Bxg6 {[%emt 0:04:32]} Bf5 {[%emt 0:02:05]} 17. Bf7+ {[%emt 0:04:59]} Kh8 {[%emt 0:02:30] [#]} 18. Ne4 $2 {[%emt 0:07:08]} (18. Bd2 $1 $16 {keeps the pressure on.}) 18... Bxe4 {[%emt 0:00:48]} 19. dxe4 {[%emt 0:00:19] [#]} Rad8 {[%emt 0:02:07]} (19... Nb4 $1 $17 20. c3 Nd3+ 21. Ke2 Qa6) 20. f5 $2 {[%emt 0:03:23] [#]} (20. Be3 $11 {and White stays safe.} Nb4 21. O-O) 20... Qf6 $4 {[%emt 0:00:50]} (20... Rxf7 $1 $19 {[%mdl 512] avoids the disaster.} 21. Bxh6 Kg8) 21. Bg6 {[%emt 0:01:27]} Kg8 {[%emt 0:00:11]} 22. c3 $16 {[%emt 0:00:19]} (22. Bxh6 $18 Qxb2 {[#]} 23. Be3 $1 (23. Bxg7 Qxg7 24. Rb1 Qc3+ 25. Kf1 Qc4+ 26. Qe2 Ne5 $18) 23... Qc3+ 24. Kf1 (24. Kf2 Rd2+ 25. Bxd2 Qxd2+ 26. Kf3 Nd4+ 27. Kg3 Ne2+ 28. Kf3 Nd4+ 29. Kg3 Ne2+ 30. Kf3 Nd4+ $11)) 22... Qe5 {[%emt 0:07:50]} 23. Bxh6 {[%emt 0:00:37]} Qg3+ {[%emt 0:00:30]} 24. Kf1 {[%emt 0:01:06]} Bxh6 {[%emt 0:02:57]} 25. Qxh6 {[%emt 0:01:39]} Qf3+ {[%emt 0:01:00]} 26. Kg1 {[%emt 0:00:09]} Qg3+ {[%emt 0:00:09]} 27. Kf1 {[%emt 0:00:02]} Qf3+ {[%emt 0:00:10]} 28. Kg1 {[%emt 0:03:02]} 1/2-1/2

[Event "34th GER-ch Seniors-50 2022"]
[Site "Magdeburg"]
[Date "2022.08.12"]
[Round "1.8"]
[White "Heck, Norbert"]
[Black "Arndt, Olaf"]
[Result "1-0"]
[ECO "A84"]
[WhiteElo "2249"]
[BlackElo "1914"]
[Annotator "TA"]
[PlyCount "49"]
[EventDate "2022.08.12"]
[EventType "swiss"]
[EventCountry "GER"]
[SourceTitle "playchess.com"]
[Source "ChessBase"]
[SourceQuality "1"]
[TimeControl "40/5400+30:1800+30"]

{[%evp 9,49,42,58,38,46,45,47,34,40,37,40,33,98,91,110,116,186,179,163,160,204,213,191,199,206,201,226,187,372,220,249,222,493,485,495,477,628,517,606,614,629,635]} 1. Nf3 {[%emt 0:00:06]} f5 {[%emt 0:00:20]} 2. d4 {[%emt 0:00:31]} e6 {[%emt 0:00:06]} 3. c4 {[%emt 0:00:34]} b6 {[%emt 0:00:10]} 4. g3 {[%emt 0:00:09]} Bb7 {[%emt 0:00:05]} 5. Bg2 {[%emt 0:00:06]} Bb4+ {[%emt 0:00:07]} 6. Bd2 {[%emt 0:00:37] A84: Dutch Defence: 2 c4 Miscellaneous.} a5 {[%emt 0:00:11]} 7. O-O {[%emt 0:00:15]} Bxd2 {[%emt 0:00:21]} 8. Qxd2 {[%emt 0:00:31] White is slightly better.} Nf6 {[%emt 0:00:14]} 9. Nc3 {[%emt 0:00:06]} O-O {[%emt 0:00:06]} 10. d5 {[%emt 0:02:07] [#]} Qe7 $146 {[%emt 0:10:35] [#]} (10... Na6 $14) ({Predecessor:} 10... Na6 11. Rad1 Nc5 12. dxe6 dxe6 13. Qxd8 Raxd8 14. Nb5 Ba6 15. Nfd4 Nfe4 16. f3 Bxb5 17. fxe4 Bxc4 {0-1 (38) Van Kooten,L (2252)-Hort,V (2519) Hoogeveen 2001}) 11. Nd4 $1 $16 {[%emt 0:01:53][%cal Od5d6] Threatens to win with d6!} c6 {[%emt 0:03:48]} 12. Rad1 {[%emt 0:09:15] White is more active.} Ng4 {[%emt 0:05:05]} (12... g6 $16) 13. h3 {[%emt 0:06:26]} Ne5 {[%emt 0:00:37]} 14. b3 {[%emt 0:00:22]} f4 {[%emt 0:07:09]} 15. gxf4 {[%emt 0:05:22]} Ng6 {[%emt 0:00:40]} 16. e3 {[%emt 0:05:05]} Nh4 {[%emt 0:00:37]} 17. Bh1 {[%emt 0:01:49]} e5 {[%emt 0:00:52]} 18. Nde2 {[%emt 0:03:25]} Rf6 $2 {[%emt 0:05:51] [#]} (18... exf4 19. Nxf4 Na6) 19. Kh2 {[%emt 0:02:32]} ({Less strong is} 19. Be4 exf4 20. dxc6 (20. Nxf4 Na6 $16) 20... Bxc6 $16) (19. dxc6 $142 Rg6+ 20. Kh2 Bxc6 21. Nd5 (21. Bd5+ Kh8 $18)) 19... Rh6 {[%emt 0:01:30]} 20. Rg1 {[%emt 0:00:34]} Nf5 $2 {[%emt 0:00:30]} (20... Na6 {keeps fighting.} 21. Na4 Nc5 22. Nxb6 Rf8 23. Qxa5 Ng6 24. dxc6 Bxc6) 21. Rg5 $18 {[%emt 0:00:30] White is clearly winning.} g6 {[%emt 0:00:30]} 22. dxc6 {[%emt 0:00:30]} dxc6 {[%emt 0:00:30]} 23. Qd8+ {[%emt 0:00:30]} Kf7 {[%emt 0:00:30]} 24. Qxe7+ {[%emt 0:00:30]} Kxe7 {[%emt 0:00:30]} 25. e4 {[%emt 0:00:30] White took control after the opening.  Weighted Error Value: White=0.20 (precise) /Black=0.52} 1-0

[Event "34th GER-ch Seniors-50 2022"]
[Site "Magdeburg"]
[Date "2022.08.13"]
[Round "2.1"]
[White "Zude, Arno"]
[Black "Hoffmann, Uwe"]
[Result "1-0"]
[ECO "B33"]
[WhiteElo "2371"]
[BlackElo "2077"]
[Annotator "TA"]
[PlyCount "111"]
[EventDate "2022.08.12"]
[EventType "swiss"]
[EventCountry "GER"]
[SourceTitle "playchess.com"]
[Source "ChessBase"]
[SourceQuality "1"]
[TimeControl "40/5400+30:1800+30"]

{[%evp 18,111,54,41,39,4,34,34,27,14,28,26,36,18,34,39,32,-8,50,40,36,19,41,36,86,0,25,27,80,101,164,179,173,170,181,164,298,287,300,310,279,239,285,270,255,274,278,289,572,566,679,652,666,646,663,299,635,0,528,510,745,457,699,437,508,464,436,368,367,343,587,532,708,694,1486,1450,11873,11873,5722,11130,8016,11873,9956,9011,4272,4145,11748,4141,29974,4141,4141,4141,12843,9026,29981,29978]} 1. e4 {[%emt 0:00:04]} c5 {[%emt 0:00:20]} 2. Nf3 {[%emt 0:00:11][%cal Bg1f3,Bf3d4,Bd4b5,Bb5a3,Ba3c4][%mdl 32]} Nc6 {[%emt 0:00:10]} 3. d4 {[%emt 0:00:08]} cxd4 {[%emt 0:00:11]} 4. Nxd4 {[%emt 0:00:02]} Nf6 {[%emt 0:00:13]} 5. Nc3 {[%emt 0:00:08]} e5 {[%emt 0:00:40]} 6. Ndb5 {[%emt 0:00:17]} d6 {[%emt 0:00:11]} 7. Bg5 {[%emt 0:00:12]} a6 {[%emt 0:00:20]} 8. Na3 {[%emt 0:00:10]} Be6 {[%emt 0:00:29]} 9. Nc4 {[%emt 0:02:35]} Rc8 {[%emt 0:00:19]} 10. Nd5 {[%emt 0:16:46]} Bxd5 {[%emt 0:00:34] B33: Sicilian: Pelikan and Sveshnikov Variations.} 11. exd5 {[%emt 0:00:11]} Nb8 {[%emt 0:01:17]} (11... Ne7 $5 {[%cal Re7d5]}) 12. a4 {[%emt 0:03:26]} Be7 {[%emt 0:00:56] White is slightly better.} 13. Be2 {[%emt 0:03:35]} O-O {[%emt 0:04:12][%cal Of6d5]} 14. Be3 {[%emt 0:05:02]} Nbd7 {[%emt 0:04:13][%cal Of6g4] [#]} 15. a5 $146 {[%emt 0:03:13]} ({Predecessor:} 15. O-O Ne8 16. a5 f5 17. Nb6 Nxb6 18. Bxb6 Qd7 19. c4 e4 20. b4 {½-½ (85) Schaarschmidt,K (2049)-Strutinskaya,G (2296) Wunsiedel 2014}) 15... Ne8 {[%emt 0:04:05]} 16. Qd2 {[%emt 0:09:49]} f5 {[%emt 0:02:02]} 17. f3 {[%emt 0:01:33]} Bf6 {[%emt 0:08:28]} (17... Bh4+ $11 18. g3 f4) 18. O-O {[%emt 0:01:13]} Qe7 {[%emt 0:04:42]} 19. Rab1 {[%emt 0:10:29]} Nc7 {[%emt 0:03:14]} 20. Na3 {[%emt 0:05:10]} Rce8 {[%emt 0:02:39]} (20... f4 $14 21. Ba7 Ne8) 21. Rfe1 {[%emt 0:07:13] White is more active.} (21. Qb4 $16) 21... Kh8 {[%emt 0:01:18]} (21... Bh4 $5 {[%cal Rh4e1]}) 22. c4 {[%emt 0:01:29]} Qf7 {[%emt 0:07:48]} (22... Bh4 $11 {remains equal.}) 23. Qb4 $16 {[%emt 0:02:29][%csl LRb7,LRd6] Black is now going downhill.} Nc5 {[%emt 0:04:04]} (23... f4 $16) 24. Bxc5 $18 {[%emt 0:04:20]} dxc5 {[%emt 0:00:14]} 25. Qxc5 {[%emt 0:00:11]} e4 {[%emt 0:07:57]} 26. Nc2 {[%emt 0:04:12]} g5 {[%emt 0:05:20]} (26... Nb5 $142 27. fxe4 (27. cxb5 Rc8 $18) 27... Rc8) 27. fxe4 {[%emt 0:05:30]} fxe4 {[%emt 0:01:19]} 28. Rf1 {[%emt 0:00:50]} Qg7 {[%emt 0:01:28]} 29. Rf2 {[%emt 0:05:21] Rbf1 is the strong threat.} Be5 {[%emt 0:01:00]} 30. Rbf1 {[%emt 0:01:29][%cal Rf2f8]} Rxf2 {[%emt 0:02:05]} 31. Rxf2 {[%emt 0:00:10]} ({But not} 31. Qxf2 e3 32. Qf7 (32. Nxe3 $2 Bd4 $17) (32. Qxe3 $2 Bxh2+ 33. Kxh2 Rxe3 $19) 32... Qxf7 33. Rxf7 Kg8 $18) 31... g4 {[%emt 0:01:50][%cal Oe5h2]} 32. g3 {[%emt 0:01:20]} h5 $2 {[%emt 0:01:15]} (32... Bxb2 33. Rf4 Bc1) 33. Rf5 {[%emt 0:01:43]} Qh7 {[%emt 0:03:36]} 34. Rf8+ {[%emt 0:00:47]} Rxf8 {[%emt 0:00:49]} 35. Qxf8+ {[%emt 0:00:02]} Qg8 {[%emt 0:00:15]} 36. Qh6+ {[%emt 0:00:04]} Qh7 {[%emt 0:00:15]} 37. Qf8+ {[%emt 0:00:05]} Qg8 {[%emt 0:00:12]} 38. Qf5 {[%emt 0:01:02]} Qe8 {[%emt 0:00:47]} 39. b4 {[%emt 0:01:48] [#] And now d6 would win.} Bc3 {[%emt 0:01:50]} (39... Kg7 $142 40. Bf1 Bf6) 40. Kg2 {[%emt 0:01:59]} Qe5 {[%emt 0:03:59]} 41. Qxe5+ {[%emt 0:31:35]} Bxe5 {[%emt 0:30:03][%mdl 4096] Endgame KBN-KBN} 42. h3 {[%emt 0:00:38]} gxh3+ {[%emt 0:06:20]} 43. Kxh3 {[%emt 0:00:02]} Na8 $2 {[%emt 0:00:34]} (43... Kg7 {might work better.} 44. Bxh5 Kf6) 44. g4 {[%emt 0:00:00]} hxg4+ {[%emt 0:00:00]} 45. Kxg4 {[%emt 0:00:00]} b6 {[%emt 0:00:00]} 46. Kf5 {[%emt 0:00:00]} Bc3 {[%emt 0:00:00]} 47. d6 {[%emt 0:00:00] [#] White wants to mate with d7.} Kg7 {[%emt 0:00:00]} 48. Kxe4 {[%emt 0:00:00]} bxa5 {[%emt 0:00:00]} 49. bxa5 {[%emt 0:00:00]} Bxa5 {[%emt 0:00:00]} 50. c5 {[%emt 0:00:00]} Kf6 {[%emt 0:00:00]} 51. Kd5 {[%emt 0:00:00]} Kf7 {[%emt 0:00:00]} 52. Kc6 {[%emt 0:00:00]} Ke6 {[%emt 0:00:00]} 53. Nd4+ {[%emt 0:00:00]} Ke5 {[%emt 0:00:00]} 54. Nb3 {[%emt 0:00:00]} Bd8 {[%emt 0:00:00]} 55. Kd7 {[%emt 0:00:00]} Bh4 {[%emt 0:00:00]} 56. Bf3 {[%emt 0:00:00] Weighted Error Value: White=0.53/Black=0.92} 1-0

[Event "34th GER-ch Seniors-50 2022"]
[Site "Magdeburg"]
[Date "2022.08.13"]
[Round "2.2"]
[White "Schulze, Andreas"]
[Black "Pirrot, Dieter"]
[Result "1/2-1/2"]
[ECO "C41"]
[WhiteElo "2082"]
[BlackElo "2328"]
[Annotator "TA"]
[PlyCount "81"]
[EventDate "2022.08.12"]
[EventType "swiss"]
[EventCountry "GER"]
[SourceTitle "playchess.com"]
[Source "ChessBase"]
[SourceQuality "1"]
[TimeControl "40/5400+30:1800+30"]

{[%evp 10,81,35,41,29,25,18,27,30,21,14,17,18,19,30,-8,45,46,47,31,52,54,77,23,35,30,32,11,31,25,25,18,24,14,16,4,137,24,35,24,33,31,39,35,70,5,5,0,0,0,0,0,0,-15,-11,-23,0,0,66,74,78,0,0,0,0,0,0,0,0,0,0,0,0,0]} 1. e4 {[%emt 0:00:05]} e5 {[%emt 0:00:08]} 2. Nf3 {[%emt 0:00:46]} d6 {[%emt 0:00:14]} 3. d4 {[%emt 0:01:32]} Nf6 {[%emt 0:00:10]} 4. Nc3 {[%emt 0:00:56]} Nbd7 {[%emt 0:00:21]} 5. Bc4 {[%emt 0:12:03]} Be7 {[%emt 0:00:10]} 6. a4 {[%emt 0:01:13]} O-O {[%emt 0:01:03] C41: Philidor Defence.} 7. h3 {[%emt 0:05:37]} exd4 {[%emt 0:01:53]} 8. Qxd4 {[%emt 0:06:31]} Nc5 {[%emt 0:04:20] White has an edge.} 9. O-O {[%emt 0:02:05]} Nfd7 {[%emt 0:01:45]} 10. Nd5 {[%emt 0:03:32]} Nb6 {[%emt 0:00:55]} 11. Nxe7+ {[%emt 0:16:18]} Qxe7 {[%emt 0:00:10] [#]} 12. Bd3 $146 {[%emt 0:01:15]} ({Predecessor:} 12. Re1 Nxc4 13. Qxc4 a5 14. e5 Qe6 15. Qxe6 fxe6 16. Bg5 Rf7 17. exd6 cxd6 18. b3 {½-½ (80) Mingarro Carceller,S (2309)-Minnican,A (2105) Benidorm 2021}) 12... a5 {[%emt 0:02:45]} (12... Ncxa4 $11 13. e5 (13. Rxa4 c5 $17) 13... dxe5) 13. Re1 $14 {[%emt 0:13:37]} f6 {[%emt 0:06:27]} 14. Bd2 {[%emt 0:03:52]} Bd7 {[%emt 0:02:21][%cal Rb6a4]} 15. b3 {[%emt 0:03:38]} Rfe8 {[%emt 0:01:28]} 16. Nh2 {[%emt 0:00:22]} (16. Qc3 $16) 16... Bc6 {[%emt 0:10:31]} 17. f3 {[%emt 0:00:17]} Nxd3 {[%emt 0:11:23]} 18. Qxd3 {[%emt 0:00:25]} Qf7 {[%emt 0:03:31]} 19. Bc3 {[%emt 0:05:53]} Nd7 {[%emt 0:03:12]} 20. Rad1 {[%emt 0:00:23]} b6 {[%emt 0:00:49]} 21. Ng4 {[%emt 0:01:52]} Nc5 {[%emt 0:03:33]} 22. Qd2 {[%emt 0:00:08]} Rad8 {[%emt 0:13:37] [#]} (22... f5 $11 {keeps the balance.} 23. exf5 Qxf5) 23. Ne3 {[%emt 0:00:38]} (23. Bxf6 $1 $16 {[%mdl 512]} Rd7 24. Bd4) 23... Re6 {[%emt 0:08:10]} 24. Bb2 {[%emt 0:04:04]} Rde8 {[%emt 0:03:36]} 25. Qf2 {[%emt 0:01:38]} Qg6 {[%emt 0:02:31]} 26. Nf5 {[%emt 0:03:33]} d5 {[%emt 0:02:46][%cal Rd5e4]} 27. exd5 {[%emt 0:04:23] White is more active.} (27. Nd4 $14 dxe4 28. Nxe6 Nxe6 29. fxe4) 27... Bxd5 $11 {[%emt 0:00:28]} 28. Rxe6 {[%emt 0:00:42]} Bxe6 {[%emt 0:00:22]} 29. Ng3 {[%emt 0:00:46]} Bxb3 {[%emt 0:07:20]} 30. cxb3 {[%emt 0:01:19] And now Ba3 would win.} Nd3 {[%emt 0:00:07]} 31. Rxd3 {[%emt 0:00:42]} Qxd3 {[%emt 0:00:09]} 32. Ne4 {[%emt 0:00:09][%cal Ob2f6]} Rd8 {[%emt 0:00:37][%mdl 1024] Black has compensation.} 33. Bc3 {[%emt 0:01:43] aiming for Qg3.} Qb1+ {[%emt 0:05:58]} (33... f5 $2 {[#]} 34. Qg3 $1 Rd7 35. Nf6+ Kf7 36. Nxd7 Qxc3 37. Kh2 $18) (33... Kf8 $11) 34. Kh2 $14 {[%emt 0:00:01] Threatens to win with Qg3.} Rd1 {[%emt 0:00:36]} (34... Qxb3 $2 35. Qg3 Kh8 36. Qxc7 $18) 35. Qe3 {[%emt 0:02:24]} (35. Qh4 $16) 35... Qxb3 $11 {[%emt 0:01:24] The position is equal.} 36. Nd6 {[%emt 0:01:35][%cal Re3e8]} h6 $36 {[%emt 0:01:42][%mdl 2048] Black is more active.} 37. Qe8+ {[%emt 0:00:35]} Kh7 {[%emt 0:00:07]} 38. Qe4+ {[%emt 0:00:08]} Kg8 {[%emt 0:00:18]} 39. Qe8+ {[%emt 0:00:57]} Kh7 {[%emt 0:00:08]} 40. Qe4+ {[%emt 0:00:04]} Kg8 {[%emt 0:00:29]} 41. Qe8+ {[%emt 0:32:46] Weighted Error Value: White=0.17 (very precise) /Black=0.19 (very precise)} 1/2-1/2

[Event "34th GER-ch Seniors-50 2022"]
[Site "Magdeburg"]
[Date "2022.08.13"]
[Round "2.3"]
[White "Raitza, Olaf"]
[Black "Proschmann, Tino"]
[Result "1-0"]
[ECO "B48"]
[WhiteElo "2289"]
[BlackElo "2070"]
[Annotator "TA"]
[PlyCount "59"]
[EventDate "2022.08.12"]
[EventType "swiss"]
[EventCountry "GER"]
[SourceTitle "playchess.com"]
[Source "ChessBase"]
[SourceQuality "1"]
[TimeControl "40/5400+30:1800+30"]

{[%evp 11,59,32,48,16,41,19,17,47,37,0,0,0,0,0,35,12,138,134,129,140,127,121,118,117,228,225,219,144,138,46,348,347,461,436,926,711,704,711,706,702,701,687,664,593,656,647,625,608,738,657]} 1. e4 {[%emt 0:00:03]} c5 {[%emt 0:00:13]} 2. Nf3 {[%emt 0:00:04]} e6 {[%emt 0:00:12]} 3. d4 {[%emt 0:00:28]} cxd4 {[%emt 0:00:07]} 4. Nxd4 {[%emt 0:00:02]} Nc6 {[%emt 0:00:13]} 5. Nc3 {[%emt 0:00:12]} Qc7 {[%emt 0:00:31]} 6. Be3 {[%emt 0:00:26]} a6 {[%emt 0:00:14]} 7. Qf3 {[%emt 0:01:48] B48: Sicilian: Taimanov: 5 Nc3 Qc7 6 Be3 a6 without Be2.} Nf6 {[%emt 0:00:34][%cal Of8a3]} 8. O-O-O {[%emt 0:00:39]} Ne5 {[%emt 0:00:18] 8...Rb8 is more fashionable.} 9. Qg3 {[%emt 0:02:33] f4 is the strong threat. The position is equal.} b5 {[%emt 0:07:26]} 10. Bf4 {[%emt 0:18:27]} d6 {[%emt 0:08:54]} 11. Bxe5 {[%emt 0:07:13]} dxe5 {[%emt 0:00:52]} 12. Bxb5+ {[%emt 0:01:32]} axb5 {[%emt 0:02:14]} 13. Ncxb5 {[%emt 0:00:04] [#]} Qb7 $146 {[%emt 0:36:25]} (13... Qc5 $11 {keeps the balance.} 14. b4 Qb6 15. Qxe5 Bxb4 16. Nc7+ Kf8 17. Nxa8 Ba3+ 18. Kd2 Qa7) ({Predecessor:} 13... Qc5 14. b4 Qc4 15. Qxe5 Rxa2 16. Nc7+ Kd7 17. Ncb5 Ke8 18. Qd6 Ra1+ 19. Kb2 Qa2+ 20. Kc3 Nxe4+ {0-1 (20) Sokolovsky,Y (2395)-Volokitin,A (2687) Terme Catez 2022}) 14. Qxe5 $16 {[%emt 0:03:33] [#] Threatens to win with Nc7+.} Be7 {[%emt 0:03:08] aiming for ...0-0.} (14... Rxa2 $2 15. Nc7+ Qxc7 16. Qxc7 $18) 15. Nc7+ {[%emt 0:05:36] Pair of Knights!} Kf8 {[%emt 0:00:11]} 16. Nxa8 {[%emt 0:01:17] 0x0.00236110448cdp-1022s more active pieces.} Qxa8 {[%emt 0:00:13]} 17. f3 {[%emt 0:11:03]} (17. Qc7 $6 Ne8 18. Qc4 Nd6 $11) 17... Nd7 {[%emt 0:22:05]} (17... Bd7 $16 {might work better.}) 18. Qc7 $18 {[%emt 0:44:30] Hoping for Nc6.} g6 {[%emt 0:01:11]} 19. Nc6 {[%emt 0:00:00]} Qxa2 {[%emt 0:04:03][%cal Oe7f6]} 20. c3 {[%emt 0:00:00]} (20. Rxd7 $2 Bxd7 21. Qa5 (21. Qxd7 $2 Bg5+ 22. Kd1 Qb1+ 23. Ke2 Qxc2+ 24. Kf1 Qc1+ 25. Kf2 Qxh1 $19) 21... Qxa5 22. Nxa5 Bg5+ 23. Kb1 Ke7 $19) ({White should try} 20. Nxe7 $16 Kxe7 21. b3) 20... Qa1+ $2 {[%emt 0:03:28][%mdl 8192] A mistake that costs the game.} (20... Bg5+ $14 21. Kc2 (21. f4 Qa1+ 22. Kc2 Qa4+ 23. Kc1 Qa1+ 24. Kc2 Qa4+ 25. Kc1 Qa1+ $11) 21... Kg7) 21. Kc2 {[%emt 0:00:00] Dancing on a razor blade.} Qa4+ {[%emt 0:00:22]} 22. Kb1 {[%emt 0:00:00] White is clearly winning.} Bf6 {[%emt 0:06:27]} (22... Qa8 $142 23. Rxd7 (23. Nxe7 Kxe7 24. Qd6+ Kf6 $16) 23... Bxd7 24. Qxd7 Qe8) 23. e5 {[%emt 0:00:00]} Nxe5 {[%emt 0:01:44]} 24. Nxe5 {[%emt 0:00:00][%csl Ge5][%cal Rc7f7]} ({Not} 24. Qxc8+ Kg7 25. Nd8 Nc4 $11) 24... Qe8 {[%emt 0:00:43] [#]} 25. Nxf7 $1 {[%emt 0:00:00]} Qxf7 {[%emt 0:00:01]} 26. Qxc8+ {[%emt 0:00:00]} Kg7 {[%emt 0:00:08]} 27. Qd7 {[%emt 0:00:00]} Be7 {[%emt 0:00:20]} 28. Rhe1 {[%emt 0:00:00]} Rd8 {[%emt 0:00:19]} 29. Qa4 {[%emt 0:00:00]} Rb8 {[%emt 0:01:48]} 30. Qe4 {[%emt 0:00:00] Weighted Error Value: White=0.21 (precise) /Black=0.57} 1-0